[Event "WSTCC-65 2024"]
[Site "Krakow"]
[Date "2024.07.05"]
[Round "4.10"]
[White "Messa, Roberto"]
[Black "Soderberg, Per"]
[Result "1/2-1/2"]
[ECO "D37"]
[WhiteElo "2262"]
[BlackElo "2015"]
[Annotator "TA"]
[PlyCount "59"]
[EventDate "2024.07.01"]
[EventType "team-tourn"]
[EventCountry "POL"]
[SourceTitle "playchess.com"]
[Source "ChessBase"]
[SourceQuality "1"]
[TimeControl "40/5400+30:1800+30"]

{[%evp 16,59,48,45,58,20,8,8,71,67,53,22,27,11,20,12,40,28,34,24,66,33,39,16,86,75,254,158,151,149,155,160,166,154,160,154,143,95,95,96,104,102,156,149,252,0]} 1. d4 {[%emt 0:00:42]} d5 {[%emt 0:00:07]} 2. c4 {[%emt 0:00:06]} e6 {[%emt 0:00:05]} 3. Nf3 {[%emt 0:00:12]} Nf6 {[%emt 0:00:06]} 4. Nc3 {[%emt 0:00:07]} Be7 {[%emt 0:00:33]} 5. Bf4 {[%emt 0:00:20]} O-O {[%emt 0:00:36]} 6. e3 {[%emt 0:00:05]} c6 {[%emt 0:00:49]} 7. Bd3 {[%emt 0:03:21]} Nbd7 {[%emt 0:02:10]} 8. O-O {[%emt 0:05:34]} h6 {[%emt 0:09:21]} 9. h3 {[%emt 0:00:47]} b6 {[%emt 0:04:16]} 10. e4 {[%emt 0:08:02]} dxe4 {[%emt 0:01:16]} 11. Nxe4 {[%emt 0:00:06]} Nxe4 {[%emt 0:00:49]} (11... Bb7 $11) 12. Bxe4 $16 {[%emt 0:00:07]} Bb7 {[%emt 0:00:08]} 13. Qe2 {[%emt 0:15:29]} Nf6 {[%emt 0:05:09]} 14. Bc2 {[%emt 0:00:07]} c5 {[%emt 0:01:27]} 15. Rad1 $36 {[%emt 0:20:49][%mdl 2048] White fights for an advantage.} cxd4 {[%emt 0:03:59]} 16. Nxd4 {[%emt 0:00:36]} Qc8 {[%emt 0:00:17]} 17. Be5 {[%emt 0:04:49]} a6 {[%emt 0:06:14]} 18. b3 {[%emt 0:02:12]} Qc5 {[%emt 0:07:20][%cal Ob6b5]} 19. Rfe1 {[%emt 0:11:32][%cal Bf1e1,Be1d1,Bd1d5][%mdl 32]} Rfe8 {[%emt 0:02:28]} (19... Rfd8 $11 {keeps the balance.}) 20. Qd3 {[%emt 0:00:44]} g6 $2 {[%emt 0:07:23]} (20... Kf8 $16) 21. Nxe6 {[%emt 0:03:55]} Qc6 {[%emt 0:00:44][%csl Gb7][%cal Rc6g2]} 22. Nf4 {[%emt 0:00:05] Chess con chili. White is much more active.} Rad8 {[%emt 0:09:19] Prevents Nd5} 23. Qg3 {[%emt 0:08:33]} Rxd1 {[%emt 0:01:02]} 24. Rxd1 {[%emt 0:00:09]} ({Stronger than} 24. Bxd1 Ne4 25. Bf3 Nxg3 $11) 24... Ne4 {[%emt 0:00:58]} 25. Bxe4 {[%emt 0:01:09]} Qxe4 {[%emt 0:00:09]} 26. Nd5 {[%emt 0:02:48]} (26. Bc3 $142 {And now Re1 would win.} Bd8 27. Nh5) 26... Bxd5 {[%emt 0:01:27]} 27. Rxd5 {[%emt 0:00:25]} (27. cxd5 $2 {loses.} Bh4 28. Qg4 Qxg4 (28... Qxe5 29. Qxh4 Qe2 30. Qd4 $16) (28... Rxe5 $2 29. f4 $19) 29. hxg4 Rxe5 $19) 27... Bc5 {[%emt 0:11:11] [#] Wards off Qe3} 28. Bc3 {[%emt 0:03:01] Prevents Qe1+} Qb1+ {[%emt 0:04:43]} (28... Qc2 $142) 29. Kh2 {[%emt 0:00:17]} Qxa2 {[%emt 0:05:26] [#]} (29... Qc2 $16) 30. Bd4 $2 {[%emt 0:04:13] Weighted Error Value: White=0.22 (precise) /Black=0.32.  Loses game:     	---       	Black=1      Missed win:     	White=1     	---        Mistake:       	White=1     	Black=4      Inaccurate:     	White=4     	Black=2      OK:         	White=5     	Black=7      Best:        	White=1     	Black=1} ({White must play} 30. Re5 $1 $18 {[%cal Re5e8]} Rf8 31. Re6) 1/2-1/2

[Event "WSTCC-65 2024"]
[Site "Krakow"]
[Date "2024.07.05"]
[Round "4.10"]
[White "Rooze, Jan"]
[Black "Orton, Stephen L A"]
[Result "1/2-1/2"]
[ECO "B30"]
[WhiteElo "2222"]
[BlackElo "2115"]
[Annotator "RC"]
[PlyCount "79"]
[EventDate "2024.07.01"]
[EventType "team-tourn"]
[EventCountry "POL"]
[SourceTitle "playchess.com"]
[Source "ChessBase"]
[SourceQuality "1"]
[TimeControl "40/5400+30:1800+30"]

1. e4 {[%emt 0:00:03]} c5 {[%emt 0:00:04]} 2. Nf3 {[%emt 0:00:04]} Nc6 {[%emt 0:00:07]} 3. Bb5 {[%emt 0:00:03]} d6 {[%emt 0:00:52]} 4. O-O {[%emt 0:00:14]} Bd7 {[%emt 0:00:53]} 5. Re1 {[%emt 0:00:12]} Nf6 {[%emt 0:00:23]} 6. h3 {[%emt 0:00:20]} a6 {[%emt 0:11:31]} 7. Bxc6 {[%emt 0:11:04]} Bxc6 {[%emt 0:00:21]} 8. e5 {[%emt 0:00:13]} dxe5 {[%emt 0:02:59]} 9. Nxe5 {[%emt 0:00:09]} Qd5 {[%emt 0:04:35]} 10. Nxc6 {[%emt 0:00:10]} Qxc6 {[%emt 0:00:05]} 11. d3 {[%emt 0:06:47]} e6 {[%emt 0:01:27]} 12. Nd2 {[%emt 0:08:11]} Be7 {[%emt 0:05:07]} 13. Nc4 {[%emt 0:00:12]} b5 {[%emt 0:06:50]} 14. Ne5 {[%emt 0:01:02]} Qb7 {[%emt 0:00:18]} 15. a4 {[%emt 0:12:08]} O-O {[%emt 0:01:22]} 16. Qe2 {[%emt 0:03:33]} Nd5 {[%emt 0:09:06]} 17. Qf3 {[%emt 0:01:33]} b4 {[%emt 0:02:26]} 18. b3 {[%emt 0:03:43]} Bf6 {[%emt 0:03:27]} 19. Bb2 {[%emt 0:00:31]} Qc7 {[%emt 0:03:06]} 20. Re4 {[%emt 0:02:59]} g6 {[%emt 0:04:39]} 21. Rae1 {[%emt 0:01:20]} Bg7 {[%emt 0:00:20]} 22. Ba1 {[%emt 0:01:26]} Rad8 {[%emt 0:03:58]} 23. Nc4 {[%emt 0:11:35]} Bxa1 {[%emt 0:02:48]} 24. Rxa1 {[%emt 0:00:06]} Qe7 {[%emt 0:00:28]} 25. Rae1 {[%emt 0:00:35]} Qf6 {[%emt 0:01:00]} 26. Qg3 {[%emt 0:06:33]} Qe7 {[%emt 0:04:53]} 27. Re5 {[%emt 0:01:58]} Nf6 {[%emt 0:03:27]} 28. Qg5 {[%emt 0:03:48]} Nd5 {[%emt 0:10:38]} 29. Qxe7 {[%emt 0:00:51]} Nxe7 {[%emt 0:00:05]} 30. Rxc5 {[%emt 0:00:05]} Nf5 {[%emt 0:00:49]} 31. Kf1 {[%emt 0:03:13]} Nd4 {[%emt 0:00:56]} 32. Rc1 {[%emt 0:01:00]} Rd5 {[%emt 0:00:16]} 33. Rxd5 {[%emt 0:05:18]} exd5 {[%emt 0:00:07]} 34. Ne3 {[%emt 0:00:08]} Rd8 {[%emt 0:00:33]} 35. Ke1 {[%emt 0:00:45]} f5 {[%emt 0:00:37]} 36. Kd2 {[%emt 0:04:43]} f4 {[%emt 0:00:39]} 37. Ng4 {[%emt 0:00:51]} h5 {[%emt 0:07:01]} 38. Ne5 {[%emt 0:04:42]} Re8 {[%emt 0:01:39]} 39. Re1 {[%emt 0:00:37]} Rc8 {[%emt 0:01:42]} 40. Rc1 {[%emt 0:01:11]} 1/2-1/2

[Event "WSTCC-65 2024"]
[Site "Krakow"]
[Date "2024.07.05"]
[Round "4.10"]
[White "Morriss, Pete"]
[Black "Fletcher, John"]
[Result "1-0"]
[ECO "B20"]
[WhiteElo "1982"]
[BlackElo "2007"]
[Annotator "NA RC"]
[PlyCount "83"]
[EventDate "2024.07.01"]
[EventType "team-tourn"]
[EventCountry "POL"]
[SourceTitle "playchess.com"]
[Source "ChessBase"]
[SourceQuality "1"]
[TimeControl "40/5400+30:1800+30"]

1. e4 {[%emt 0:01:29]} c5 {[%emt 0:00:13]} 2. c4 {[%emt 0:00:22]} Nc6 {[%emt 0:01:43]} 3. Nc3 {[%emt 0:00:13]} g6 {[%emt 0:00:45]} 4. g3 {[%emt 0:00:08]} Bg7 {[%emt 0:01:03]} 5. Bg2 {[%emt 0:00:12]} d6 {[%emt 0:03:57]} 6. Nge2 {[%emt 0:00:27]} h5 {[%emt 0:02:57]} 7. h3 {[%emt 0:02:07]} Nf6 {[%emt 0:17:54]} 8. d3 {[%emt 0:06:45]} e5 {[%emt 0:09:43]} 9. a3 {[%emt 0:05:24]} Be6 {[%emt 0:13:00]} 10. Bg5 {[%emt 0:04:15]} Qd7 {[%emt 0:10:35]} 11. Nd5 {[%emt 0:03:55]} Nh7 {[%emt 0:05:20]} 12. Bd2 {[%emt 0:03:20]} O-O {[%emt 0:02:50]} 13. h4 {[%emt 0:05:29]} Bxd5 {[%emt 0:04:04]} 14. cxd5 {[%emt 0:03:52]} Ne7 {[%emt 0:01:20]} 15. Bh3 {[%emt 0:03:55]} Qc7 {[%emt 0:02:44]} 16. Qc1 {[%emt 0:03:07]} b5 {[%emt 0:00:45]} 17. b4 {[%emt 0:02:28]} c4 {[%emt 0:00:20]} 18. dxc4 {[%emt 0:00:50]} bxc4 {[%emt 0:00:05]} 19. O-O {[%emt 0:01:23]} f5 {[%emt 0:00:47]} 20. f3 {[%emt 0:03:12]} Kh8 {[%emt 0:01:06]} 21. Bh6 {[%emt 0:02:45]} fxe4 {[%emt 0:00:30]} 22. Bxg7+ {[%emt 0:00:27]} Kxg7 {[%emt 0:00:08]} 23. fxe4 {[%emt 0:00:25]} Rxf1+ {[%emt 0:00:52]} 24. Kxf1 {[%emt 0:02:30]} Rf8+ {[%emt 0:00:08]} 25. Kg2 {[%emt 0:00:35]} Nf6 {[%emt 0:01:13]} 26. Nc3 {[%emt 0:03:02]} Qb6 {[%emt 0:09:23]} 27. Qd2 {[%emt 0:03:48]} Neg8 {[%emt 0:01:34]} 28. Rf1 {[%emt 0:03:49]} Nh6 {[%emt 0:01:30]} 29. Qf2 {[%emt 0:08:08]} Qd4 {[%emt 0:01:04]} 30. Qxd4 {[%emt 0:01:23]} exd4 {[%emt 0:00:07]} 31. Nb5 {[%emt 0:00:26]} d3 {[%emt 0:00:23]} 32. Nc3 {[%emt 0:05:50]} Nhg4 {[%emt 0:04:45]} 33. Bxg4 {[%emt 0:01:47]} Nxg4 {[%emt 0:00:10]} 34. Rxf8 {[%emt 0:00:15]} Kxf8 {[%emt 0:00:04]} 35. Kf3 {[%emt 0:00:10]} Ke7 {[%emt 0:03:06]} 36. b5 {[%emt 0:01:04]} Kd7 {[%emt 0:01:04]} 37. a4 {[%emt 0:02:13]} a6 {[%emt 0:00:41]} 38. b6 {[%emt 0:01:13]} a5 {[%emt 0:00:51]} 39. Nb5 {[%emt 0:00:20]} Kc8 {[%emt 0:00:38]} 40. Nxd6+ {[%emt 0:00:09]} Kb8 {[%emt 0:00:10]} 41. Nxc4 {[%emt 0:30:11]} Kb7 {[%emt 0:30:10]} 42. e5 {[%emt 0:00:47]} 1-0

[Event "WSTCC-65 2024"]
[Site "Krakow"]
[Date "2024.07.05"]
[Round "4.11"]
[White "Hammar, Bengt"]
[Black "Trabattoni, Franco"]
[Result "1-0"]
[ECO "B37"]
[WhiteElo "2127"]
[BlackElo "2210"]
[Annotator "RC"]
[PlyCount "87"]
[EventDate "2024.07.01"]
[EventType "team-tourn"]
[EventCountry "POL"]
[SourceTitle "playchess.com"]
[Source "ChessBase"]
[SourceQuality "1"]
[TimeControl "40/5400+30:1800+30"]

1. e4 {[%emt 0:01:19]} c5 {[%emt 0:00:06]} 2. Nf3 {[%emt 0:00:26]} Nc6 {[%emt 0:00:06]} 3. d4 {[%emt 0:00:26]} cxd4 {[%emt 0:00:07]} 4. Nxd4 {[%emt 0:00:07]} g6 {[%emt 0:00:08]} 5. c4 {[%emt 0:01:27]} Bg7 {[%emt 0:00:15]} 6. Nc2 {[%emt 0:00:33]} d6 {[%emt 0:02:29]} 7. Be2 {[%emt 0:01:23]} Nf6 {[%emt 0:01:55]} 8. Nc3 {[%emt 0:01:08]} O-O {[%emt 0:01:33]} 9. O-O {[%emt 0:02:28]} Bd7 {[%emt 0:01:22]} 10. f3 {[%emt 0:06:13]} Rc8 {[%emt 0:01:22]} 11. Be3 {[%emt 0:02:35]} Na5 {[%emt 0:24:32]} 12. Na3 {[%emt 0:02:35]} b6 {[%emt 0:02:27]} 13. Qd2 {[%emt 0:03:31]} Nc6 {[%emt 0:06:00]} 14. Rac1 {[%emt 0:04:03]} Ne5 {[%emt 0:02:32]} 15. b3 {[%emt 0:01:01]} Bc6 {[%emt 0:00:37]} 16. Nab5 {[%emt 0:01:34]} Ra8 {[%emt 0:04:25]} 17. Rfd1 {[%emt 0:01:24]} Ned7 {[%emt 0:04:18]} 18. Nd4 {[%emt 0:01:21]} Bb7 {[%emt 0:00:09]} 19. Bg5 {[%emt 0:02:31]} a6 {[%emt 0:20:38]} 20. Kh1 {[%emt 0:02:10]} Rb8 {[%emt 0:03:52]} 21. Bf1 {[%emt 0:05:49]} Kh8 {[%emt 0:01:27]} 22. Nd5 {[%emt 0:05:17]} Ng8 {[%emt 0:00:55]} 23. Qf2 {[%emt 0:01:48]} Re8 {[%emt 0:02:53]} 24. Qh4 {[%emt 0:03:34]} Nf8 {[%emt 0:00:17]} 25. Qf2 {[%emt 0:03:24]} h6 {[%emt 0:02:40]} 26. Be3 {[%emt 0:00:30]} Nd7 {[%emt 0:00:49]} 27. b4 {[%emt 0:01:03]} e6 {[%emt 0:04:26]} 28. Nc3 {[%emt 0:00:21]} Qe7 {[%emt 0:02:27]} 29. a3 {[%emt 0:01:59]} Rec8 {[%emt 0:02:47]} 30. Nb3 {[%emt 0:11:04]} Ba8 {[%emt 0:02:42]} 31. Bd4 {[%emt 0:01:33]} Ne5 {[%emt 0:00:13]} 32. Na4 {[%emt 0:02:38]} b5 {[%emt 0:00:47]} 33. cxb5 {[%emt 0:00:33]} Rxc1 {[%emt 0:00:04]} 34. Rxc1 {[%emt 0:00:09]} axb5 {[%emt 0:00:03]} 35. Nb6 {[%emt 0:01:50]} Qe8 {[%emt 0:02:06]} 36. Nxa8 {[%emt 0:05:01]} Rxa8 {[%emt 0:00:01]} 37. Qb2 {[%emt 0:00:37]} g5 {[%emt 0:00:38]} 38. Na5 {[%emt 0:00:21]} Ne7 {[%emt 0:00:30]} 39. Rc7 {[%emt 0:01:40]} Rb8 {[%emt 0:01:00]} 40. Nb7 {[%emt 0:02:38]} f6 {[%emt 0:02:05]} 41. Bxe5 {[%emt 0:38:01]} dxe5 {[%emt 0:30:12]} 42. Nd6 {[%emt 0:00:09]} Qf8 {[%emt 0:00:18]} 43. Qb3 {[%emt 0:00:20]} Ng6 {[%emt 0:00:00]} 44. Qxe6 1-0

[Event "WSTCC-65 2024"]
[Site "Krakow"]
[Date "2024.07.05"]
[Round "4.11"]
[White "Hewson, Brian W R"]
[Black "Van Herck, Marcel"]
[Result "1-0"]
[ECO "E40"]
[WhiteElo "2042"]
[BlackElo "1942"]
[Annotator "NA RC"]
[PlyCount "89"]
[EventDate "2024.07.01"]
[EventType "team-tourn"]
[EventCountry "POL"]
[SourceTitle "playchess.com"]
[Source "ChessBase"]
[SourceQuality "1"]
[TimeControl "40/5400+30:1800+30"]

1. d4 {[%emt 0:00:04]} Nf6 {[%emt 0:01:49]} 2. c4 {[%emt 0:00:11]} e6 {[%emt 0:01:57]} 3. Nc3 {[%emt 0:00:10]} Bb4 {[%emt 0:00:14]} 4. e3 {[%emt 0:00:17]} Nc6 {[%emt 0:00:50]} 5. Bd2 {[%emt 0:04:51]} d5 {[%emt 0:06:47]} 6. Nf3 {[%emt 0:05:29]} O-O {[%emt 0:00:56]} 7. Bd3 {[%emt 0:00:47]} Re8 {[%emt 0:06:53]} 8. O-O {[%emt 0:03:33]} Bf8 {[%emt 0:06:43]} 9. a3 {[%emt 0:08:05]} g6 {[%emt 0:17:27]} 10. b4 {[%emt 0:02:40]} Bg7 {[%emt 0:04:22]} 11. b5 {[%emt 0:02:02]} Nb8 {[%emt 0:04:23]} 12. Ne5 {[%emt 0:00:27]} Nfd7 {[%emt 0:06:04]} 13. Nxd7 {[%emt 0:02:02]} Qxd7 {[%emt 0:00:39]} 14. Rc1 {[%emt 0:02:00]} c6 {[%emt 0:01:00]} 15. bxc6 {[%emt 0:00:25]} bxc6 {[%emt 0:02:30]} 16. Na4 {[%emt 0:00:59]} Qd8 {[%emt 0:02:48]} 17. f4 {[%emt 0:03:34]} a5 {[%emt 0:08:08]} 18. c5 {[%emt 0:04:55]} Ba6 {[%emt 0:01:47]} 19. Bxa6 {[%emt 0:00:19]} Rxa6 {[%emt 0:00:32]} 20. Rb1 {[%emt 0:04:22]} Nd7 {[%emt 0:00:21]} 21. Rb7 {[%emt 0:03:06]} f6 {[%emt 0:00:30]} 22. Qe2 {[%emt 0:02:41]} Ra8 {[%emt 0:00:29]} 23. Qg4 {[%emt 0:09:11]} Re7 {[%emt 0:00:12]} 24. Rfb1 {[%emt 0:03:37]} Rb8 {[%emt 0:02:31]} 25. Rxb8 {[%emt 0:01:27]} Nxb8 {[%emt 0:00:03]} 26. Nb6 {[%emt 0:03:22]} e5 {[%emt 0:00:23]} 27. Nc8 {[%emt 0:01:04]} Re8 {[%emt 0:00:38]} 28. Nd6 {[%emt 0:05:47]} f5 {[%emt 0:05:18]} 29. Qd1 {[%emt 0:00:05]} exd4 {[%emt 0:00:24]} 30. Nxe8 {[%emt 0:01:53]} Qxe8 {[%emt 0:00:42]} 31. Qc1 {[%emt 0:09:37]} Nd7 {[%emt 0:01:11]} 32. Rb7 {[%emt 0:04:13]} dxe3 {[%emt 0:05:38]} 33. Bxe3 {[%emt 0:00:12]} d4 {[%emt 0:00:10]} 34. Qc4+ {[%emt 0:03:45]} Kf8 {[%emt 0:00:47]} 35. Bf2 {[%emt 0:00:45]} g5 {[%emt 0:04:48]} 36. Rb1 {[%emt 0:04:11]} gxf4 {[%emt 0:00:41]} 37. Bxd4 {[%emt 0:02:00]} Bxd4+ {[%emt 0:01:11]} 38. Qxd4 {[%emt 0:00:09]} Qe3+ {[%emt 0:00:40]} 39. Qxe3 {[%emt 0:00:09]} fxe3 {[%emt 0:00:03]} 40. Rf1 {[%emt 0:00:18]} Ke7 {[%emt 0:01:39]} 41. Rxf5 {[%emt 0:30:43]} Ke6 {[%emt 0:30:10]} 42. Rh5 {[%emt 0:03:16]} Nf6 {[%emt 0:00:09]} 43. Rh6 {[%emt 0:00:05]} Ke5 {[%emt 0:00:13]} 44. Kf1 {[%emt 0:00:37]} Nd5 {[%emt 0:01:30]} 45. Rxc6 {[%emt 0:02:31]} 1-0

[Event "WSTCC-65 2024"]
[Site "Krakow"]
[Date "2024.07.05"]
[Round "4.11"]
[White "Van Kemenade, Rudy"]
[Black "MacElligott, Gerard"]
[Result "1-0"]
[ECO "C00"]
[WhiteElo "1960"]
[BlackElo "1993"]
[Annotator "NA RC"]
[PlyCount "61"]
[EventDate "2024.07.01"]
[EventType "team-tourn"]
[EventCountry "POL"]
[SourceTitle "playchess.com"]
[Source "ChessBase"]
[SourceQuality "1"]
[TimeControl "40/5400+30:1800+30"]

1. e4 {[%emt 0:00:04]} e6 {[%emt 0:01:17]} 2. d3 {[%emt 0:00:07]} c5 {[%emt 0:00:54]} 3. Nf3 {[%emt 0:00:07]} Nc6 {[%emt 0:00:06]} 4. g3 {[%emt 0:00:06]} g6 {[%emt 0:01:33]} 5. Bg5 {[%emt 0:00:12]} Qb6 {[%emt 0:04:11]} 6. Nbd2 {[%emt 0:01:11]} Qxb2 {[%emt 0:02:02]} 7. Nc4 {[%emt 0:00:10]} Qc3+ {[%emt 0:04:36]} 8. Bd2 {[%emt 0:01:07]} Qg7 {[%emt 0:02:47]} 9. Bg2 {[%emt 0:01:39]} e5 {[%emt 0:05:55]} 10. O-O {[%emt 0:00:23]} d6 {[%emt 0:00:49]} 11. Rb1 {[%emt 0:00:20]} f6 {[%emt 0:09:56]} 12. Nh4 {[%emt 0:01:01]} Qc7 {[%emt 0:01:25]} 13. f4 {[%emt 0:00:19]} Bg7 {[%emt 0:00:20]} 14. f5 {[%emt 0:01:26]} Nge7 {[%emt 0:01:42]} 15. Ne3 {[%emt 0:03:33]} Bd7 {[%emt 0:07:35]} 16. Nd5 {[%emt 0:02:05]} Nxd5 {[%emt 0:02:06]} 17. exd5 {[%emt 0:01:53]} Ne7 {[%emt 0:01:50]} 18. Be4 {[%emt 0:01:05]} O-O-O {[%emt 0:22:36]} 19. fxg6 {[%emt 0:01:54]} Rdf8 {[%emt 0:01:28]} 20. gxh7 {[%emt 0:04:09]} f5 {[%emt 0:02:15]} 21. Bg5 {[%emt 0:02:51]} fxe4 {[%emt 0:05:55]} 22. Bxe7 {[%emt 0:00:35]} Rxf1+ {[%emt 0:00:50]} 23. Qxf1 {[%emt 0:00:09]} Be8 {[%emt 0:05:06]} 24. Nf5 {[%emt 0:02:59]} Rxh7 {[%emt 0:00:46]} 25. Bxd6 {[%emt 0:03:07]} Qd7 {[%emt 0:03:47]} 26. dxe4 {[%emt 0:03:18]} Bg6 {[%emt 0:02:57]} 27. Ne7+ {[%emt 0:04:30]} Kd8 {[%emt 0:00:24]} 28. Bxc5 {[%emt 0:00:11]} Bxe4 {[%emt 0:01:01]} 29. Qf7 {[%emt 0:02:37]} Qh3 {[%emt 0:03:04]} 30. Nc6+ {[%emt 0:00:10]} Kc8 {[%emt 0:00:27]} 31. Qxb7# {[%emt 0:00:27]} 1-0

[Event "WSTCC-65 2024"]
[Site "Krakow"]
[Date "2024.07.05"]
[Round "4.12"]
[White "Ceschia, Ivano"]
[Black "Algars, Olle"]
[Result "1-0"]
[ECO "B92"]
[WhiteElo "2180"]
[BlackElo "1883"]
[Annotator "RC"]
[PlyCount "47"]
[EventDate "2024.07.01"]
[EventType "team-tourn"]
[EventCountry "POL"]
[SourceTitle "playchess.com"]
[Source "ChessBase"]
[SourceQuality "1"]
[TimeControl "40/5400+30:1800+30"]

1. e4 {[%emt 0:01:20]} c5 {[%emt 0:00:10]} 2. Nf3 {[%emt 0:00:04]} d6 {[%emt 0:00:07]} 3. d4 {[%emt 0:01:10]} cxd4 {[%emt 0:00:09]} 4. Nxd4 {[%emt 0:00:03]} Nf6 {[%emt 0:00:10]} 5. Nc3 {[%emt 0:00:08]} a6 {[%emt 0:00:06]} 6. Be2 {[%emt 0:00:17]} e5 {[%emt 0:00:42]} 7. Nb3 {[%emt 0:00:53]} Be6 {[%emt 0:01:09]} 8. O-O {[%emt 0:02:17]} Be7 {[%emt 0:02:40]} 9. f4 {[%emt 0:05:39]} exf4 {[%emt 0:01:38]} 10. Bxf4 {[%emt 0:00:13]} Nc6 {[%emt 0:01:29]} 11. Kh1 {[%emt 0:02:29]} d5 {[%emt 0:14:44]} 12. Bf3 {[%emt 0:10:18]} dxe4 {[%emt 0:03:39]} 13. Nxe4 {[%emt 0:00:06]} Nd5 {[%emt 0:04:33]} 14. Bd2 {[%emt 0:00:09]} O-O {[%emt 0:09:45]} 15. Nec5 {[%emt 0:01:41]} Bc8 {[%emt 0:03:09]} 16. c4 {[%emt 0:08:04]} Nc7 {[%emt 0:08:33]} 17. Bc3 {[%emt 0:13:21]} Ne6 {[%emt 0:02:17]} 18. Nxe6 {[%emt 0:03:23]} Bxe6 {[%emt 0:00:16]} 19. Bd5 Qd6 {[%emt 0:06:37]} 20. Qh5 {[%emt 0:06:21]} Bxd5 {[%emt 0:03:51]} 21. cxd5 {[%emt 0:01:16]} Nb4 {[%emt 0:06:04]} 22. Rad1 {[%emt 0:10:46]} Rad8 {[%emt 0:03:15]} 23. Nd4 {[%emt 0:10:07]} Nxd5 {[%emt 0:06:59]} 24. Nf5 {[%emt 0:00:23]} 1-0

[Event "WSTCC-65 2024"]
[Site "Krakow"]
[Date "2024.07.05"]
[Round "4.12"]
[White "O`Connor, Eddie"]
[Black "Quinn, Peter"]
[Result "1/2-1/2"]
[ECO "B29"]
[WhiteElo "1953"]
[BlackElo "1744"]
[Annotator "NA RC"]
[PlyCount "37"]
[EventDate "2024.07.01"]
[EventType "team-tourn"]
[EventCountry "POL"]
[SourceTitle "playchess.com"]
[Source "ChessBase"]
[SourceQuality "1"]
[TimeControl "40/5400+30:1800+30"]

1. e4 {[%emt 0:00:20]} c5 {[%emt 0:00:30]} 2. Nf3 {[%emt 0:00:13]} Nf6 {[%emt 0:01:09]} 3. Nc3 {[%emt 0:00:15]} d5 {[%emt 0:03:46]} 4. exd5 {[%emt 0:02:42]} Nxd5 {[%emt 0:00:54]} 5. Bb5+ {[%emt 0:03:49]} Bd7 {[%emt 0:03:32]} 6. Bxd7+ {[%emt 0:02:03]} Qxd7 {[%emt 0:00:52]} 7. O-O {[%emt 0:03:02]} Nxc3 {[%emt 0:02:31]} 8. bxc3 {[%emt 0:01:59]} g6 {[%emt 0:03:40]} 9. d4 {[%emt 0:02:45]} Bg7 {[%emt 0:01:13]} 10. Ba3 {[%emt 0:03:10]} cxd4 {[%emt 0:03:43]} 11. Re1 {[%emt 0:04:56]} Nc6 {[%emt 0:10:45]} 12. cxd4 {[%emt 0:00:55]} Rd8 {[%emt 0:01:13]} 13. c3 {[%emt 0:02:19]} O-O {[%emt 0:01:21]} 14. Qe2 {[%emt 0:01:52]} Rfe8 {[%emt 0:01:15]} 15. Rad1 {[%emt 0:00:43]} e6 {[%emt 0:01:38]} 16. Ne5 {[%emt 0:03:21]} Qc7 {[%emt 0:03:33]} 17. f4 {[%emt 0:09:57]} a6 {[%emt 0:07:16]} 18. Qf3 {[%emt 0:06:20]} Rd5 {[%emt 0:04:28]} 19. Nxc6 1/2-1/2

[Event "WSTCC-65 2024"]
[Site "Krakow"]
[Date "2024.07.05"]
[Round "4.13"]
[White "Vogt, Lothar"]
[Black "White, Alastair F"]
[Result "1/2-1/2"]
[ECO "B07"]
[WhiteElo "2292"]
[BlackElo "2022"]
[Annotator "TA"]
[PlyCount "51"]
[EventDate "2024.07.01"]
[EventType "team-tourn"]
[EventCountry "POL"]
[SourceTitle "playchess.com"]
[Source "ChessBase"]
[SourceQuality "1"]
[TimeControl "40/5400+30:1800+30"]

{[%evp 17,50,18,28,0,0,9,19,16,45,34,63,52,95,64,52,58,51,50,53,41,85,53,61,68,62,50,72,74,101,-25,-19,-53,-44,-40,-7]} 1. e4 {[%emt 0:00:04]} d6 {[%emt 0:00:11]} 2. d4 {[%emt 0:00:07]} Nf6 {[%emt 0:00:11]} 3. Nc3 {[%emt 0:00:02]} g6 {[%emt 0:00:19]} 4. g3 {[%emt 0:00:40]} Bg7 {[%emt 0:02:47]} 5. Bg2 {[%emt 0:00:03]} O-O {[%emt 0:00:24]} 6. Nge2 {[%emt 0:00:04]} e5 {[%emt 0:00:21]} 7. h3 {[%emt 0:00:57]} a6 {[%emt 0:00:31]} 8. O-O {[%emt 0:02:22]} Nc6 {[%emt 0:02:55][%cal Bb8c6,Bc6a5,Ba5b7][%mdl 32]} 9. Be3 {[%emt 0:02:13]} Bd7 {[%emt 0:08:26]} 10. Re1 {[%emt 0:03:08]} b5 {[%emt 0:06:34][%cal Bb7b5,Bb5b4][%mdl 32]} 11. d5 {[%emt 0:06:05]} Na5 {[%emt 0:00:58]} 12. b3 {[%emt 0:05:16]} b4 {[%emt 0:01:21]} 13. Nb1 {[%emt 0:00:29][%cal Bc3b1,Bb1d2,Bd2c4][%mdl 32]} c5 {[%emt 0:04:54][%cal Of6e4]} 14. Nd2 {[%emt 0:06:02]} Qc8 {[%emt 0:01:37]} 15. Kh2 {[%emt 0:06:45]} Nb7 {[%emt 0:08:37]} 16. a3 {[%emt 0:07:12]} a5 {[%emt 0:01:40]} 17. Nc4 {[%emt 0:04:05]} Qc7 {[%emt 0:00:36] Repels Nb6} 18. a4 {[%emt 0:00:09]} Ne8 {[%emt 0:01:10]} 19. Rc1 {[%emt 0:06:18] White is more active.} f5 {[%emt 0:04:12]} 20. f4 {[%emt 0:02:00]} fxe4 {[%emt 0:01:28]} 21. Bxe4 {[%emt 0:00:16]} Nf6 {[%emt 0:01:04]} 22. Bg2 {[%emt 0:00:04] Strongly threatening fxe5.} e4 {[%emt 0:00:51] [#]} 23. Ng1 {[%emt 0:09:34]} ({White has to play} 23. g4 $1 $16) 23... h5 $11 {[%emt 0:02:55]} 24. Qd2 {[%emt 0:01:53]} Bf5 {[%emt 0:05:34]} 25. Bf2 {[%emt 0:00:35]} Qf7 {[%emt 0:02:21]} 26. Rcd1 {[%emt 0:00:40] Weighted Error Value: White=0.21 (precise) /Black=0.15 (very precise) .  Mistake:       	White=1     	---        Inaccurate:     	White=3     	Black=6      OK:         	White=9     	Black=3} 1/2-1/2